Cogmind - Beta 9 @@@ ROGUE MODE // 2020.08.14 @ 13:08:36 Player: Semi Result: Destroyed by Y-45 Defender with Beam Rifle Performance ------------- Evolutions (2) 1000 Regions Visited (5) 1000 Robots Destroyed (31) 155 Value Destroyed (790) 790 Prototype IDs (1) 20 Alien Tech Used (0) 0 Bonus (300) 300 TOTAL SCORE: 3265 Bonus ------- High Alert Combat Kills 36 Follower Combat Kills 270 Friendly Fire -6 Cogmind --------- Core Integrity 0/550 Matter 434/450 Energy 100/100 System Corruption 0% Temperature Cool (9) Location -8/Materials Parts ------- Power (2) Propulsion (2) Utility (3) Large Storage Unit Compact Matter Pod Hacking Suite Weapon (4) Improved Medium Laser Inventory (10) Aluminum Leg Visual Processing Unit Terrain Scan Processor Hacking Suite Proton Missile Launcher Mini Grenade Launcher Improved Datajack Peak State ------------ Power Light Nuclear Core Propulsion Titanium Leg Titanium Leg Utility Large Storage Unit Sensor Array Hacking Suite Weapon Small Laser Light Assault Rifle Heavy Assault Rifle Proton Missile Launcher Inventory Titanium Leg Titanium Leg Compact Matter Pod Visual Processing Unit Hacking Suite Small Laser Proton Missile Launcher Mini Grenade Launcher [Rating: 24] Favorites ----------- Power Light Nuclear Core Engine Light Ion Engine Power Core Light Nuclear Core Propulsion Titanium Leg Leg Titanium Leg Wheel Compact Wheel Utility Large Storage Unit Device Improved Heat Sink Storage Large Storage Unit Hackware Hacking Suite Weapon Light Assault Rifle Energy Gun Small Laser Energy Cannon Particle Cannon Ballistic Gun Light Assault Rifle Launcher Rocket Launcher Special Melee Weapon Improved Datajack Build | -11 -10 -10 -9 -9 -8 ------- Run | Scr Mat Min Mat Min Mat Slots Evolved 4 | . . . 2 . 2 Power 1 | . . . . . 1 Propulsion . | . . . . . . Utility 1 | . . . 1 . . Weapon 2 | . . . 1 . 1 Parts Attached 44 | 6 13 1 10 1 13 Power 7 | 1 3 . 2 . 1 Engine 3 | 1 2 . . . . Core 4 | . 1 . 2 . 1 Reactor . | . . . . . . Propulsion 10 | 2 2 1 2 . 3 Treads . | . . . . . . Leg 8 | . 2 1 2 . 3 Wheel 2 | 2 . . . . . Hover . | . . . . . . Flight . | . . . . . . Utility 7 | 1 3 . 1 . 2 Device 3 | . 2 . . . 1 Storage 3 | 1 1 . . . 1 Processor . | . . . . . . Hackware 1 | . . . 1 . . Protection . | . . . . . . Artifact . | . . . . . . Weapon 20 | 2 5 . 5 1 7 Energy Gun 9 | 1 3 . 1 . 4 Energy Cannon 2 | . . . 1 . 1 Ballistic Gun 5 | 1 2 . 1 1 . Ballistic Cannon . | . . . . . . Launcher 3 | . . . 2 . 1 Special Weapon . | . . . . . . Impact Weapon . | . . . . . . Slashing Weapon . | . . . . . . Piercing Weapon . | . . . . . . Special Melee Weapon 1 | . . . . . 1 Unidentified Prototypes 1 | . . . . . 1 Parts Lost 22 | . 1 . 4 2 15 Power 2 | . . . . . 2 Propulsion 5 | . . . . . 5 Utility 2 | . . . . 1 1 Weapon 13 | . 1 . 4 1 7 Highest Loss Streak 8 | . 1 . 3 2 8 Average Slot Usage (%) 83 | . 91 100 91 93 54 Engine 1 | . 7 . . . . Core 8 | . 6 14 11 11 1 Leg 19 | . 14 28 21 22 14 Wheel 2 | . 10 . . . . Device 8 | . 8 14 11 10 2 Storage 12 | . 14 14 11 11 13 Hackware 5 | . . . 10 11 9 Energy Gun 8 | . 14 14 5 . 3 Energy Cannon 1 | . . . 2 10 1 Ballistic Gun 11 | . 13 14 10 17 4 Launcher 2 | . . . 7 . 2 Naked Turns . | . . . . . . Heaviest Build 34 | 9 24 24 32 30 34 Greatest Support 34 | 26 26 20 34 34 34 Greatest Overweight (x) 9 | . 2 1 9 . 1 Average Overweight (x) . | . . 1 . . . Largest Inventory Capacity 10 | 6 10 10 10 10 10 Average Capacity 9 | 4 7 10 10 10 10 Most Carried 10 | 6 8 8 10 10 9 Average Carried 7 | 3 5 7 8 9 7 Final Capacity 10 | . . . . . 10 Final Carried 7 | . . . . . 7 Class Distribution -------------------- 49% | Mutant 27% | Scavenger-Mutant 13% | Gunner 6% | Scavenger-Skirmisher 3% | Scavenger-Gunner Dominant Class ---------------- Mutant | -10/Materials Scavenger-Mutant | -10/Mines Mutant | -9/Materials Scavenger-Gunner | -9/Mines Mutant | -8/Materials Resources | -11 -10 -10 -9 -9 -8 ----------- Run | Scr Mat Min Mat Min Mat Matter Collected 841 | 260 124 32 311 16 98 Remotely . | . . . . . . Salvage Created 831 | . 309 31 286 47 158 Parts 60 | . 28 4 17 2 9 Haulers Intercepted . | . . . . . . Recyclers Shooed . | . . . . . . Parts Field Recycled . | . . . . . . Retrieved Matter . | . . . . . . Parts Self-Destructed . | . . . . . . Prevented . | . . . . . . Kills | -11 -10 -10 -9 -9 -8 ------- Run | Scr Mat Min Mat Min Mat Combat Hostiles Destroyed 26 | . 10 2 9 2 3 Guns 14 | . 9 2 2 1 . Cannons 3 | . . . 1 1 1 AOE 9 | . 1 . 6 . 2 Classes Destroyed 9 | . 3 . 3 2 1 Worker 1 | . . . . 1 . Builder 2 | . . . 1 . 1 Watcher 2 | . 1 . 1 . . Swarmer 8 | . 6 2 . . . Grunt 10 | . 4 . 5 . 1 Brawler 1 | . . . 1 . . Sentry 3 | . . . 3 . . Hunter 2 | . . . . . 2 Assembled 2 | . . . . 2 . Best Kill Streak 4 | . 3 2 4 3 2 Combat Bots Only 3 | . 3 2 3 2 2 Max Kills in Single Turn 2 | . 2 1 2 2 2 Gunslinging 1 | . 1 . . . . Exploded 2 | . 1 . 2 . 2 Melee . | . . . . . . Uniques/NPCs Destroyed . | . . . . . . Combat | -11 -10 -10 -9 -9 -8 -------- Run | Scr Mat Min Mat Min Mat Damage Taken 2924 | . 400 10 668 247 1599 Core 807 | . 109 . 114 30 554 Absorbed by Shields . | . . . . . . Core Remaining (%) 73 | 100 . 56 . 64 . Volleys Fired 86 | . 23 2 30 4 27 Largest 3 | . 2 2 3 3 3 Hottest 128 | . 60 60 128 111 82 Shots Fired 146 | . 42 4 54 12 34 Gun 109 | . 42 4 33 8 22 Cannon 15 | . . . 2 4 9 Launcher 22 | . . . 19 . 3 Special . | . . . . . . Kinetic 74 | . 19 2 27 8 18 Thermal 33 | . 6 2 8 4 13 Explosive 19 | . . . 19 . . Electromagnetic 20 | . 17 . . . 3 Robot Hit Streak 10 | . 5 3 10 4 7 Robot Miss Streak 3 | . 3 . 3 1 3 Penetration Max . | . . . . . . Secondary Targets 4 | . 3 1 . . . Max Gunslinging Chain 1 | . 1 1 . . . Shots Hit Robots 90 | . 23 3 30 7 27 Core Hits 59 | . 16 2 26 6 9 Critical Hits . | . . . . . . Critical Kills . | . . . . . . Critical Parts Destroyed . | . . . . . . Melee Attacks 4 | . . . . . 4 Impact . | . . . . . . Slashing . | . . . . . . Piercing . | . . . . . . Sneak Attacks . | . . . . . . Combat Hostiles . | . . . . . . Follow-up Attacks . | . . . . . . Damage Inflicted 2055 | . 348 36 1117 94 460 Guns 723 | . 298 29 181 53 162 Cannons 244 | . . . 21 41 182 Explosions 1081 | . 50 . 915 . 116 Melee . | . . . . . . Ramming 7 | . . 7 . . . Kinetic 392 | . 78 6 116 53 139 Thermal 448 | . 93 23 86 41 205 Explosive 915 | . . . 915 . . Electromagnetic 293 | . 177 . . . 116 Impact . | . . . . . . Slashing . | . . . . . . Piercing . | . . . . . . Highest Corruption 2 | . . . . 2 . Average Corruption 2 | . . . . 2 . Corruption Purged . | . . . . . . Overload Shots . | . . . . . . Overflow Damage 20 | . . . 4 . 16 Projectiles 16 | . . . . . 16 Explosions 4 | . . . 4 . . Melee . | . . . . . . Knockbacks . | . . . . . . Impact . | . . . . . . Kinetic . | . . . . . . Secondary . | . . . . . . Self-Inflicted Damage 42 | . . . 42 . . Shots 1 | . . . 1 . . Rammed . | . . . . . . Targets Rammed 1 | . . 1 . . . Kicked 1 | . . 1 . . . Crushed . | . . . . . . Highest Temperature 155 | . 40 . 39 71 155 Average Temperature 31 | . 15 . 10 17 67 Received Heat Transfer 936 | . 123 . 285 60 468 Siege Activations . | . . . . . . Robots Corrupted . | . . . . . . Combat Hostiles . | . . . . . . Parts Fried . | . . . . . . Impact Corruptions . | . . . . . . Robots Melted . | . . . . . . Combat Hostiles . | . . . . . . Parts Melted 1 | . 1 . . . . Heat Transferred 894 | . 200 50 187 74 383 Parts Sabotaged . | . . . . . . Parts Stolen . | . . . . . . Parts Stripped . | . . . . . . Power Chain Reactions 1 | . 1 . . . . Missiles Intercepted . | . . . . . . Alert | -11 -10 -10 -9 -9 -8 ------- Run | Scr Mat Min Mat Min Mat Peak Influence 481 | . 322 203 481 163 102 Average Influence 171 | . 178 138 307 160 66 Maximum Alert Level 2 | . 1 1 2 . . Low Security (%) 67 | . . . . . . Level 1 21 | . . . . . . Level 2 10 | . . . . . . Level 3 . | . . . . . . Level 4 . | . . . . . . Level 5 . | . . . . . . High Security . | . . . . . . Max Security . | . . . . . . Squads Dispatched 4 | . 1 . 1 . 2 Investigation 1 | . 1 . . . . Extermination . | . . . . . . Reinforcement 3 | . . . 1 . 2 Assault . | . . . . . . Garrison . | . . . . . . Intercept . | . . . . . . Construction Impeded 1 | . . . . . 1 Haulers Reinforced . | . . . . . . Stealth | -11 -10 -10 -9 -9 -8 --------- Run | Scr Mat Min Mat Min Mat Distress Signals 2 | . 1 . 1 . . Communications Jammed . | . . . . . . Distress Signals . | . . . . . . Times Spotted 65 | . 18 3 23 10 11 Peak Tracking Total 9 | . 4 3 6 9 3 Tactical Retreats 8 | . 1 1 1 1 4 Traps | -11 -10 -10 -9 -9 -8 ------- Run | Scr Mat Min Mat Min Mat Traps Triggered . | . . . . . . Indirectly . | . . . . . . Trap Hack Attempts . | . . . . . . Triggered . | . . . . . . Disarmed . | . . . . . . Reprogrammed . | . . . . . . Reused . | . . . . . . Traps Extracted . | . . . . . . Installed . | . . . . . . Triggered . | . . . . . . Machines | -11 -10 -10 -9 -9 -8 ---------- Run | Scr Mat Min Mat Min Mat Machines Disabled 3 | . . . 3 . . Max in Single Turn 2 | . . . 2 . . Machines Sabotaged . | . . . . . . Garrisons Compromised . | . . . . . . Overloaded Fab Kills . | . . . . . . Fab Network Shutdowns . | . . . . . . Hacking | -11 -10 -10 -9 -9 -8 --------- Run | Scr Mat Min Mat Min Mat Machines Accessed 6 | . 2 . 2 . 2 Terminals 4 | . 1 . 2 . 1 Fabricators . | . . . . . . Repair Stations . | . . . . . . Recycling Units 1 | . 1 . . . . Scanalyzers 1 | . . . . . 1 Garrison Access . | . . . . . . Total Hacks 24 | . 9 . 4 . 11 Successful 22 | . 8 . 3 . 11 Failed 2 | . 1 . 1 . . Catastrophic . | . . . . . . Database Lockouts . | . . . . . . Manual . | . . . . . . Terminals 12 | . 6 . 4 . 2 Fabricators . | . . . . . . Repair Stations . | . . . . . . Recycling Units 3 | . 3 . . . . Scanalyzers 9 | . . . . . 9 Garrison Access . | . . . . . . Terminal Hacks 10 | . 5 . 3 . 2 Record 2 | . 1 . 1 . . Emergency Access Points 1 | . . . 1 . . Dispatch Records 3 | . 1 . 1 . 1 Security Status 1 | . 1 . . . . Assault Status 1 | . 1 . . . . Recall Assault 1 | . 1 . . . . Zone Layout 1 | . . . . . 1 Fabricator Hacks . | . . . . . . Repair Station Hacks . | . . . . . . Recycling Unit Hacks 3 | . 3 . . . . Recycle Component 1 | . 1 . . . . Report Inventory 1 | . 1 . . . . Retrieve Components 1 | . 1 . . . . Scanalyzer 9 | . . . . . 9 Insert Component 5 | . . . . . 5 Analyze 4 | . . . . . 4 Garrison Access Hacks . | . . . . . . Unauthorized Hacks . | . . . . . . Terminals . | . . . . . . Fabricators . | . . . . . . Repair Stations . | . . . . . . Recycling Units . | . . . . . . Scanalyzers . | . . . . . . Garrison Access . | . . . . . . Data Cores Recovered . | . . . . . . Used . | . . . . . . Hacking Detections 5 | . 2 . 2 . 1 Full Trace Events 1 | . 1 . . . . Feedback Events . | . . . . . . Feedback Blocked . | . . . . . . Robot Schematics Acquired . | . . . . . . Robots Built . | . . . . . . Matter . | . . . . . . Time . | . . . . . . Total Robot Build Rating . | . . . . . . Part Schematics Acquired 3 | . . . . . 3 Parts Built . | . . . . . . Matter . | . . . . . . Time . | . . . . . . Total Part Build Rating . | . . . . . . Parts Repaired . | . . . . . . Time . | . . . . . . Parts Recycled 1 | . 1 . . . . Recycled Matter . | . . . . . . Retrieved Matter . | . . . . . . Retrieved Components 10 | . 10 . . . . Parts Scanalyzed 4 | . . . . . 4 Part Schematics Acquired 3 | . . . . . 3 Parts Damaged . | . . . . . . Bothacking | -11 -10 -10 -9 -9 -8 ------------ Run | Scr Mat Min Mat Min Mat Used RIF Installer . | . . . . . . Robots Hacked 1 | . . . . . 1 Non-combat . | . . . . . . Combat 1 | . . . . . 1 Robot Hacks Applied 1 | . . . . . 1 parse_system 1 | . . . . . 1 Relay Couplers Released . | . . . . . . Robots Rewired . | . . . . . . Allies Hacked . | . . . . . . Hacks Repelled . | . . . . . . Allies | -11 -10 -10 -9 -9 -8 -------- Run | Scr Mat Min Mat Min Mat Total Allies 2 | . . 2 . . . Largest Group 2 | . . 2 2 1 . Highest-Rated Group 41 | . . 41 41 31 . Highest-Rated Ally 31 | . . 31 31 31 . Total Orders . | . . . . . . Ally Attacks 48 | . . 3 35 10 . Total Damage 715 | . . 43 525 147 . Kills 15 | . . 1 11 3 . Allies Corrupted . | . . . . . . Allies Melted . | . . . . . . Intel | -11 -10 -10 -9 -9 -8 ------- Run | Scr Mat Min Mat Min Mat Robot Analysis Total . | . . . . . . Derelict Logs Recovered . | . . . . . . Drone Launches . | . . . . . . Drone Recoveries . | . . . . . . Exploration | -11 -10 -10 -9 -9 -8 ------------- Run | Scr Mat Min Mat Min Mat Turns Passed 1741 | 73 392 288 463 120 405 Spaces Moved 1070 | 60 244 183 262 82 239 Core 4 | 1 . . 3 . . Treads . | . . . . . . Legs 887 | . 124 183 259 82 239 Wheels 179 | 59 120 . . . . Hover . | . . . . . . Flight . | . . . . . . Fastest Speed 50 | 50 90 150 130 130 125 Average Speed 130 | 92 118 150 134 130 131 Slowest Speed 500 | 100 180 150 500 130 160 Overloaded Moves . | . . . . . . Propulsion Burnouts . | . . . . . . Robots Hopped . | . . . . . . Cave-ins Triggered . | . . . . . . Exploration Rate (%) 26 | 3 31 47 26 30 22 Regions Visited 5 Branch Regions 2 Pre-discovered Areas 1 | . . . . 1 . Known Exits Taken . | . . . . . . Unknown Exits Taken 5 | 1 1 1 1 1 . Scrap Searched 2 | . . 1 . 1 . Spaces Dug 5 | . . . 5 . . Terrain Destroyed 105 | . 2 . 103 . . Melee . | . . . . . . Projectile . | . . . . . . AOE 105 | . 2 . 103 . . Actions | -11 -10 -10 -9 -9 -8 --------- Run | Scr Mat Min Mat Min Mat Total 1293 | 77 312 192 330 88 294 Wait 25 | . 10 4 10 . 1 Move 1065 | 59 243 182 261 81 239 Hop . | . . . . . . Pick Up 51 | 12 13 2 13 1 10 Fast Attach . | . . . . . . Attach 38 | 6 10 1 8 1 12 Detach . | . . . . . . Swap 6 | . 3 . 2 . 1 Drop 17 | . 10 . 6 1 . Fire 86 | . 23 2 30 4 27 Melee 4 | . . . . . 4 Ram . | . . . . . . Kick 1 | . . 1 . . . Crush . | . . . . . . Escape Stasis . | . . . . . . Rewire . | . . . . . . Trap . | . . . . . . Miscellaneous . | . . . . . . Route ------- -11/Scrapyard -10/Materials -10/Mines -9/Materials (discovered 2 exits: [*Min] / [*Sto]) -9/Mines -8/Materials History --------- Turn | Location | Event 5 | -11/Scrapyard | Discovered new exit (range 16) 74 | -11/Scrapyard | Entered Materials 421 | -10/Materials | Discovered new exit (range 16) 466 | -10/Materials | Entered Mines 473 | -10/Mines | Received a Rocket Launcher from a helpful Derelict 582 | -10/Mines | Build established: Scavenger-Mutant 628 | -10/Mines | Discovered new exit (range 11) 754 | -10/Mines | Entered Materials 754 | -9/Materials | Accompanied by 2 allies 754 | -9/Materials | Evolved 2 slots: Utility x1, Weapon x1 759 | -9/Materials | Led the pair of lost Derelicts to an unsafe place 932 | -9/Materials | Discovered new exit (range 6) 1011 | -9/Materials | Discovered new exit (range 16) 1031 | -9/Materials | Lost 3 parts (3w) 1217 | -9/Materials | Entered Mines 1217 | -9/Mines | Accompanied by 1 ally 1289 | -9/Mines | Discovered new exit (range 12) 1292 | -9/Mines | Learned location of Storage (-9) 1296 | -9/Mines | Assembled infested the area 1337 | -9/Mines | Entered Materials 1337 | -8/Materials | Evolved 2 slots: Power x1, Weapon x1 1505 | -8/Materials | Lost 8 parts (2n1u5w) 1649 | -8/Materials | Core integrity fell below 50% 1661 | -8/Materials | Lost 5 parts (1p2n2w) 1686 | -8/Materials | Core integrity fell below 20% 1740 | -8/Materials | Build established: Mutant 1742 | -8/Materials | Destroyed by Y-45 Defender with Beam Rifle Last Messages --------------- No effect. Jacked G-47 Trooper... Command string: reboot No effect. G-47 Trooper destroyed. Acquired Lgt. Nuclear Core. Titanium Leg destroyed. Imp. Datajack destroyed. Lgt. Nuclear Core destroyed. Destroyed Particle Gun. Carbon-fiber Leg destroyed. Acquired 43 matter. Acquired Aluminum Leg. Particle Cannon destroyed. R-06 Scavenger collects Aluminum Leg. K-01 Serf collects debris. Connecting with Scanalyzer... Acquired Prototype Energy Gun. Identified Imp. Medium Laser. Titanium Leg destroyed. Map ----- +----------------------------------------------------+ | ?????????????????????????????????????????????????? | | ?????????????????????????????????????????????????? | | ?????????????????????????????????????????????????? | | ?????????????????????????????????????????????????? | | ?????????????????????????????????????????????????? | | ?????????????????????????????????????????????????? | | ?????????????????????????????????????????????????? | | ?????????????????????????????????????????????????? | | ?????????????????????????????????????????????????? | | ?????????????????????????????????????????????????? | | ?????????????????????????????????????????????????? | | ?????????????????????????????????????????????????? | | ?????????????????????????????????????????????????? | | ????????????????????#+##+#???????????????????????? | | ?????????????? ?????# ???????????????????????? | | ?????????????? r????# ???????????????????????? | | ?????????????# #### ???????????????????????? | | ?????????????# #??????????????????????? | | ?????????????# #??????????????????????? | | ?????????????# ####???????????????????? | | ?????????????# ????????????????????? | | ???????????### ^ #????????????????????? | | ??????????? T !! ########?????????????? | | ?????????? !! ??????????????? | | ?????????? !| #?????????????????? | | ??????????????# @ #?????????????????? | | ??????????????# #?????????????????? | | ??????????????# #?????????????????? | | ??????????????# #?????????????????? | | ??????????????# ] ##########????????? | | ??????????????# + # | | ??????????????# ############ ##### # | | ??????????????# ???????????# #???######## | | ??????????????? ???????????# #??????????# | | ??????????????? ???????????#####Y Y #??????????# | | ??????????????? ???????????????# #??????????# | | ????????#####?? ?????########??# #??????????# | | ????????# ### #????# "" #?##/##+#####??????# | | ????????# +????# ""S #?# !#??????# % | | ????????# #?# #????# "" ### #??????# | | ????????## ##?# #????# / + #??????# | | ????######/#### #????# ### #??????# | | ????# # #????# #?############?????# | | ????# # #########+########## ####### | | ????# # | | ????# / T | | ????# # | | ????# ### ##### ####### ####### | | ????# #?# #???# #?????#######?????# | | ????# #?# #???#[[!!!!#?????????????????# | +----------------------------------------------------+ Best States ------------- Heat Dissipation 42 Energy Generation 14 Energy Capacity 250 Matter Stores 439 Matter Capacity 450 Sight Range 16 Robot Scan Range 10 Terrain Scan Density 10 Evasion (%) 42 Offensive Hacking 10 Item Schematics ----------------- Mni. Grenade Launcher | -8/Materials | Scanalyzed Titanium Leg | -8/Materials | Scanalyzed Proton Missile Launcher | -8/Materials | Scanalyzed Robot Schematics ------------------ None Fabricated ------------ Nothing Alien Tech Used ----------------- None Achievements -------------- I Survived The Infestation Challenges ------------ None Game ------ Seed SystemShadingNullifier Manual? 0 Play Time 00:32:34 Cumulative 3.5 hours Start 2020.08.14 @ 12:18:25 End 2020.08.14 @ 13:08:36 Sessions 1 Manual Loads 0 Difficulty Rogue Special Mode None Game No. 3 Rogue 1 Adventurer 1 Explorer 0 Win Type - Total 0 Types 0/0/0/0/0/0/0 Lore% 6 Gallery% 10 Achievement% 10 Wizard Run 0 Options --------- ASCII 0 Keyboard 0 Movement Numpad Keybinds 0 Fullscreen 1 Font 18/SmallcapsGlow Map View 76x50 Tactical HUD 0 Map Filters NONE Filters NONE Steam 1 RUN: ee9b578d-84e7-42d6-86d9-d8309ed16128